fUST/lending_fUST_20250512
["ID","MTS","AMOUNT","RATE_DAILY","PERIOD"]
[360833009,1747056941584,-3029.0,8.182e-05,2]
[360833010,1747056948641,-59.15537565,8.182e-05,2]
[360833011,1747056948663,-113.46080838,0.00013867,2]
[360833012,1747056963466,-86.84336031,0.00013867,2]
[360833013,1747056963490,-92.74877467,0.00013906,2]
[360833014,1747056979095,-62.25122533,0.00013906,2]
[360833015,1747056979121,-155.54998196,0.00013966,2]
[360833016,1747056994037,-233.25034662,0.00013826,2]
[360833017,1747057008676,-247.67034325,0.00013826,2]
[360833018,1747057024878,-200.30416869,0.00013767,2]
[360833019,1747057024901,-52.02548806,0.00013826,2]
[360833020,1747057039020,-233.88933131,0.00013826,2]
[360833021,1747057053458,-172.33196476,0.00013826,2]
[360833022,1747057069019,-154.33752524,0.00013826,2]
[360833023,1747057084755,-250.9450188,0.00013826,2]
[360833024,1747057084779,-124.40492171,0.00013966,2]
[360833025,1747057098542,-222.68523567,0.00013826,2]
[360833026,1747057114044,-253.19013171,0.00013826,2]
[360833027,1747057128504,-136.81231498,0.00013826,2]
[360833028,1747057128528,-147.92476145,0.00013966,2]
[360833029,1747057143431,-158.96548832,0.00013966,2]
[360833030,1747057158522,-160.7475224,0.00013966,2]
[360833031,1747057173484,-296.29977188,0.00013898,2]
[360833032,1747057188525,-159.38416754,0.00013898,2]
[360833033,1747057203510,-184.9123949,0.00013898,2]
[360833034,1747057203540,-39.69065496,0.00013966,2]
[360833035,1747057218411,-156.15138787,0.00013966,2]
[360833036,1747057233415,-163.56162285,0.00013967,2]
[360833037,1747057248424,-295.73239575,0.00013798,2]
[360833038,1747057263498,-422.90477411,0.00013798,2]
[360833039,1747057278436,-282.19879271,0.00013798,2]
[360833041,1747057338483,-174.5003491,0.00013798,2]
[360833042,1747057353509,-156.69914181,0.00013798,2]
[360833043,1747057369044,-282.19879271,0.00013798,2]
[360833044,1747057383613,-156.69914181,0.00013798,2]
[360833045,1747057398443,-229.69784275,0.00013798,2]
[360833046,1747057413501,-151.52692452,0.00013798,2]
[360833047,1747057429065,-213.82455512,0.00013798,2]
[360833048,1747057443484,-160.0,0.00013698,2]
[360833049,1747057443508,-52.33126262,0.00013798,2]
[360833050,1747057458436,-165.72350157,0.00012996,2]
[360833051,1747057473571,-189.06289489,0.00012989,2]
[360833052,1747057488491,-204.91866369,0.00012989,2]
[360833054,1747057504008,-198.82081551,0.00012989,2]
[360833055,1747057519093,-274.6360475,0.00012988,2]
[360833056,1747057533494,-293.18829893,0.00012988,2]
[360833057,1747057549560,-334.5497671,0.00012988,2]
[360833058,1747057564042,-297.62588647,0.00012988,2]
[360833059,1747057564066,-126.94403443,0.00012988,2]
[360833060,1747057578607,-173.05596557,0.00012988,2]
[360833061,1747057578637,-115.31267663,0.00012988,2]
[360833062,1747057593403,-176.51763205,0.00012988,2]
[360833065,1747057609075,-8.16969132,0.00012988,2]
[360833066,1747057609097,-229.92183112,0.00012989,2]
[360833067,1747057623896,-156.79811284,0.00012989,2]
[360833068,1747057638482,-483.4811067,0.00012989,2]
[360833069,1747057653532,-177.90104503,0.00012989,2]
[360833070,1747057668943,-220.66190726,0.00012888,2]
[360833071,1747057683515,-299.41072498,0.00012888,2]
[360833072,1747057698472,-211.33230852,0.0001255,2]
[360833139,1747057831896,-300.0,0.00012548,2]
[360833140,1747057831906,-300.0,0.00012549,2]
[360833141,1747057831915,-300.0,0.00012549,2]
[360833142,1747057831925,-300.0,0.00012549,2]
[360833144,1747057831936,-300.0,0.00012549,2]
[360833146,1747057831945,-1200.0,0.00012549,2]
[360833148,1747057831955,-24688.66769148,0.0001255,2]
[360833150,1747057831964,-6.73723402,0.00012888,2]
[360833153,1747057831974,-560.52179253,0.000129,2]
[360833155,1747057831984,-500.0,0.00012988,2]
[360833157,1747057831994,-476.15782688,0.00012988,2]
[360833160,1747057832005,-500.0,0.00012988,2]
[360833163,1747057832016,-500.0,0.00012988,2]
[360833165,1747057832026,-500.0,0.00012988,2]
[360833168,1747057832037,-500.0,0.00012988,2]
[360833171,1747057832048,-500.0,0.00012988,2]
[360833174,1747057832058,-500.0,0.00012988,2]
[360833176,1747057832067,-492.75786217,0.00012988,2]
[360833179,1747057832078,-500.0,0.00012988,2]
[360833182,1747057832088,-338.36865905,0.00012988,2]
[360833185,1747057832097,-157.32626057,0.00012988,2]
[360833188,1747057832106,-500.0,0.00012988,2]
[360833190,1747057832118,-421.35611278,0.00012988,2]
[360833193,1747057832128,-500.0,0.00012988,2]
[360833195,1747057832138,-500.0,0.00012988,2]
[360833197,1747057832147,-500.0,0.00012988,2]
[360833199,1747057832156,-500.0,0.00012988,2]
[360833202,1747057832165,-500.0,0.00012988,2]
[360833205,1747057832174,-500.0,0.00012988,2]
[360833207,1747057832183,-500.0,0.00012988,2]
[360833209,1747057832192,-500.0,0.00012988,2]
[360833211,1747057832201,-500.0,0.00012988,2]
[360833213,1747057832211,-500.0,0.00012988,2]
[360833215,1747057832220,-500.0,0.00012988,2]
[360833217,1747057832232,-500.0,0.00012988,2]
[360833219,1747057832241,-500.0,0.00012988,2]
[360833221,1747057832250,-500.0,0.00012988,2]
[360833223,1747057832259,-500.0,0.00012988,2]
[360833225,1747057832268,-500.0,0.00012988,2]
[360833227,1747057832277,-500.0,0.00012988,2]
[360833229,1747057832286,-500.0,0.00012988,2]
[360833231,1747057832295,-500.0,0.00012988,2]
[360833233,1747057832305,-500.0,0.00012988,2]
[360833235,1747057832314,-500.0,0.00012988,2]
[360833237,1747057832324,-500.0,0.00012988,2]
[360833239,1747057832333,-331.08160145,0.00012988,2]
[360833241,1747057832343,-500.0,0.00012988,2]
[360833243,1747057832352,-500.0,0.00012988,2]
[360833245,1747057832362,-500.0,0.00012988,2]
[360833247,1747057832371,-500.0,0.00012988,2]
[360833249,1747057832381,-500.0,0.00012988,2]
[360833251,1747057832391,-500.0,0.00012988,2]
[360833253,1747057832400,-500.0,0.00012988,2]
[360833255,1747057832410,-500.0,0.00012988,2]
[360833257,1747057832419,-500.0,0.00012988,2]
[360833259,1747057832429,-500.0,0.00012988,2]
[360833261,1747057832438,-500.0,0.00012988,2]
[360833263,1747057832447,-500.0,0.00012988,2]
[360833265,1747057832457,-500.0,0.00012988,2]
[360833267,1747057832466,-500.0,0.00012988,2]
[360833269,1747057832476,-500.0,0.00012988,2]
[360833271,1747057832486,-500.0,0.00012988,2]
[360833273,1747057832495,-500.0,0.00012988,2]
[360833275,1747057832504,-35510.02195548,0.00012988,2]
[360833277,1747057832513,-506.25609039,0.00012988,2]
[360833279,1747057832523,-8080.70576462,0.00012989,2]
[360833281,1747057832533,-884.13082033,0.00012996,2]
[360833283,1747057832543,-152.0,0.00013125,2]
[360833285,1747057832552,-560.52179251,0.00013161,2]
[360833287,1747057832562,-504.00344044,0.00013434,2]
[360833289,1747057832574,-56.51835207,0.00013434,2]
[360833292,1747057832584,-500.0,0.00013699,2]
[360833294,1747057832594,-500.0,0.00013699,2]
[360833296,1747057832603,-500.0,0.00013699,2]
[360833298,1747057832612,-443.17169714,0.00013699,2]
[360833299,1747057832621,-560.52179251,0.00013707,2]
[360833301,1747057832631,-420.0,0.00013767,2]
[360833303,1747057832641,-420.0,0.00013768,2]
[360833305,1747057832650,-346.0,0.00013768,2]
[360833307,1747057832659,-379.0,0.00013768,2]
[360833310,1747057832668,-5094.39845222,0.00013798,2]
[360833312,1747057832677,-1680.0,0.00013804,2]
[360833314,1747057832686,-560.52179251,0.00013979,2]
[360833316,1747057832696,-333.396,0.00013998,2]
[360833329,1747057832811,-469.8,0.00014,2]
[360833331,1747057832820,-469.8,0.00014,2]
[360833333,1747057832830,-151.0,0.00014,2]
[360833335,1747057832839,-151.0,0.00014,2]
[360833337,1747057832848,-151.0,0.00014,2]
[360833339,1747057832857,-151.0,0.00014,2]
[360833341,1747057832867,-151.0,0.00014,2]
[360833343,1747057832876,-151.0,0.00014,2]
[360833345,1747057832885,-151.0,0.00014,2]
[360833347,1747057832894,-151.0,0.00014,2]
[360833349,1747057832905,-207.4,0.00014152,2]
[360833351,1747057832914,-560.52179251,0.00014252,2]
[360833353,1747057832923,-800.0,0.000144,2]
[360833355,1747057832933,-500.0,0.00014403,2]
[360833357,1747057832942,-500.0,0.00014403,2]
[360833359,1747057832951,-500.0,0.00014403,2]
[360833361,1747057832960,-500.0,0.00014403,2]
[360833363,1747057832970,-500.0,0.00014403,2]
[360833365,1747057832982,-500.0,0.00014403,2]
[360833367,1747057832991,-368.84989819,0.00014403,2]
[360833369,1747057833000,-500.0,0.00014403,2]
[360833371,1747057833010,-500.0,0.00014403,2]
[360833373,1747057833019,-220.04642611,0.00014403,2]
[360833375,1747057833032,-500.0,0.00014403,2]
[360833378,1747057833043,-500.0,0.00014403,2]
[360833379,1747057833053,-500.0,0.00014403,2]
[360833381,1747057833063,-500.0,0.00014403,2]
[360833384,1747057833074,-500.0,0.00014403,2]
[360833385,1747057833084,-500.0,0.00014403,2]
[360833387,1747057833093,-500.0,0.00014403,2]
[360833389,1747057833102,-500.0,0.00014403,2]
[360833392,1747057833112,-500.0,0.00014403,2]
[360833393,1747057833122,-636.40530372,0.00014403,2]
[360833395,1747057833132,-500.0,0.00014403,2]
[360833397,1747057833141,-151.0,0.00014404,2]
[360833399,1747057833151,-151.0,0.00014404,2]
[360833401,1747057833160,-469.8,0.00014448,2]
[360833403,1747057833170,-469.8,0.00014448,2]
[360833405,1747057833180,-151.0,0.00014448,2]
[360833407,1747057833190,-151.0,0.00014448,2]
[360833409,1747057833199,-151.0,0.00014448,2]
[360833411,1747057833209,-151.0,0.00014448,2]
[360833413,1747057833219,-151.0,0.00014448,2]
[360833415,1747057833232,-151.0,0.00014448,2]
[360833417,1747057833242,-800.0,0.00014456,2]
[360833419,1747057833253,-2617.5,0.00014478,2]
[360833421,1747057833263,-2617.5,0.00014478,2]
[360833423,1747057833273,-2617.5,0.00014478,2]
[360833425,1747057833284,-2617.5,0.00014478,2]
[360833427,1747057833294,-2617.5,0.00014478,2]
[360833429,1747057833304,-2617.5,0.00014478,2]
[360833431,1747057833314,-2617.5,0.00014478,2]
[360833433,1747057833325,-2617.5,0.00014478,2]
[360833436,1747057833335,-2617.5,0.00014478,2]
[360833438,1747057833345,-2617.5,0.00014478,2]
[360833440,1747057833355,-2617.5,0.00014478,2]
[360833441,1747057833365,-2617.5,0.00014478,2]
[360833444,1747057833375,-2617.5,0.00014478,2]
[360833445,1747057833385,-2617.5,0.00014478,2]
[360833448,1747057833395,-2617.5,0.00014478,2]
[360833450,1747057833405,-2617.5,0.00014478,2]
[360833452,1747057833414,-2617.5,0.00014478,2]
[360833453,1747057833423,-2617.5,0.00014478,2]
[360833456,1747057833433,-2617.5,0.00014478,2]
[360833457,1747057833442,-2617.5,0.00014478,2]
[360833459,1747057833452,-2617.5,0.00014478,2]
[360833462,1747057833461,-2617.5,0.00014478,2]
[360833464,1747057833471,-2617.5,0.00014478,2]
[360833466,1747057833484,-2617.5,0.00014478,2]
[360833468,1747057833493,-2617.5,0.00014478,2]
[360833469,1747057833503,-2617.5,0.00014478,2]
[360833471,1747057833513,-2617.5,0.00014478,2]
[360833473,1747057833523,-560.52179251,0.00014525,2]
[360833476,1747057833533,-800.0,0.00014539,2]
[360833477,1747057833542,-800.0,0.00014599,2]
[360833479,1747057833552,-151.0,0.00014599,2]
[360833482,1747057833561,-151.0,0.000146,2]
[360833484,1747057833571,-151.0,0.000146,2]
[360833486,1747057833580,-434.16914288,0.000146,2]
[360833487,1747057833590,-800.0,0.00014614,2]
[360833489,1747057833599,-800.0,0.00014621,2]
[360833492,1747057833609,-800.0,0.00014624,2]
[360833494,1747057833619,-800.0,0.00014627,2]
[360833496,1747057833628,-800.0,0.00014628,2]
[360833497,1747057833638,-641.8857973,0.00014635,2]
[360833499,1747057833647,-434.16914287,0.00014649,2]
[360833501,1747057833657,-151.0,0.0001465,2]
[360833503,1747057833666,-800.0,0.00014657,2]
[360833505,1747057833676,-800.0,0.00014658,2]
[360833507,1747057833686,-800.0,0.00014662,2]
[360833509,1747057833698,-800.0,0.00014675,2]
[360833511,1747057833707,-800.0,0.00014677,2]
[360833514,1747057833718,-800.0,0.00014684,2]
[360833516,1747057833730,-800.0,0.00014687,2]
[360833517,1747057833740,-434.16914287,0.00014699,2]
[360833519,1747057833749,-469.8,0.000147,2]
[360833521,1747057833760,-469.8,0.000147,2]
[360833523,1747057833769,-151.0,0.000147,2]
[360833525,1747057833779,-151.0,0.000147,2]
[360833527,1747057833789,-151.0,0.000147,2]
[360833530,1747057833798,-151.0,0.000147,2]
[360833531,1747057833807,-151.0,0.000147,2]
[360833534,1747057833817,-151.0,0.000147,2]
[360833536,1747057833827,-800.0,0.00014703,2]
[360833538,1747057833837,-800.0,0.00014723,2]
[360833540,1747057833846,-800.0,0.00014732,2]
[360833542,1747057833856,-800.0,0.00014734,2]
[360833544,1747057833866,-800.0,0.00014739,2]
[360833546,1747057833876,-800.0,0.00014743,2]
[360833548,1747057833886,-800.0,0.00014744,2]
[360833550,1747057833895,-434.16914287,0.00014748,2]
[360833552,1747057833904,-800.0,0.00014759,2]
[360833554,1747057833914,-800.0,0.00014767,2]
[360833555,1747057833923,-800.0,0.00014788,2]
[360833558,1747057833933,-800.0,0.00014789,2]
[360833560,1747057833943,-800.0,0.00014789,2]
[360833562,1747057833952,-800.0,0.00014794,2]
[360833564,1747057833962,-434.16914287,0.00014797,2]
[360833566,1747057833972,-5234.21806023,0.00014797,2]
[360833568,1747057833984,-151.0,0.00014798,2]
[360833570,1747057833994,-800.0,0.00014798,2]
[360833571,1747057834004,-560.52179251,0.00014798,2]
[360833573,1747057834014,-151.0,0.000148,2]
[360833575,1747057834024,-151.0,0.000148,2]
[360833577,1747057834035,-151.0,0.000148,2]
[360833579,1747057834047,-151.0,0.000148,2]
[360833581,1747057834057,-151.0,0.000148,2]
[360833584,1747057834067,-151.0,0.000148,2]
[360833585,1747057834077,-3135.94131385,0.000148,2]
[360833586,1747057834088,-151.0,0.000148,2]
[360833587,1747057834097,-1004.01767142,0.000148,7]
[360833588,1747057834107,-800.0,0.00014815,2]
[360833589,1747057834118,-2419.6112606,0.00014823,2]
[360833590,1747057834129,-800.0,0.00014825,2]
[360833591,1747057834138,-800.0,0.00014825,2]
[360833592,1747057834148,-800.0,0.00014827,2]
[360833593,1747057834158,-800.0,0.0001487,2]
[360833594,1747057834254,-500.0,0.00014873,2]
[360833595,1747057834264,-586.14286062,0.00014873,2]
[360833596,1747057834274,-500.0,0.00014873,2]
[360833598,1747057834283,-500.0,0.00014873,2]
[360833600,1747057834292,-500.0,0.00014873,2]
[360833602,1747057834302,-649.51725662,0.00014873,2]
[360833604,1747057834311,-516.92021092,0.00014873,2]
[360833606,1747057834320,-500.0,0.00014873,2]
[360833608,1747057834329,-500.0,0.00014873,2]
[360833610,1747057834339,-500.0,0.00014873,2]
[360833612,1747057834348,-500.0,0.00014873,2]
[360833614,1747057834358,-500.0,0.00014873,2]
[360833616,1747057834367,-500.0,0.00014873,2]
[360833618,1747057834376,-500.0,0.00014873,2]
[360833620,1747057834386,-500.0,0.00014873,2]
[360833622,1747057834396,-500.0,0.00014873,2]
[360833624,1747057834405,-500.0,0.00014873,2]
[360833626,1747057834416,-500.0,0.00014873,2]
[360833628,1747057834425,-500.0,0.00014873,2]
[360833630,1747057834434,-500.0,0.00014873,2]
[360833632,1747057834443,-500.0,0.00014873,2]
[360833634,1747057834453,-500.0,0.00014873,2]
[360833636,1747057834462,-504.3942579,0.00014873,2]
[360833638,1747057834472,-501.22934475,0.00014873,2]
[360833640,1747057834483,-500.0,0.00014873,2]
[360833642,1747057834493,-500.0,0.00014873,2]
[360833644,1747057834502,-500.0,0.00014873,2]
[360833646,1747057834512,-500.0,0.00014873,2]
[360833648,1747057834521,-500.0,0.00014873,2]
[360833650,1747057834530,-500.0,0.00014873,2]
[360833652,1747057834540,-500.0,0.00014873,2]
[360833654,1747057834549,-500.98319267,0.00014873,2]
[360833656,1747057834559,-500.0,0.00014873,2]
[360833658,1747057834569,-162.04733954,0.00014873,2]
[360833660,1747057834578,-459.86847064,0.00014873,2]
[360833662,1747057834587,-500.0,0.00014873,2]
[360833664,1747057834596,-500.0,0.00014873,2]
[360833666,1747057834606,-500.0,0.00014873,2]
[360833668,1747057834615,-500.0,0.00014873,2]
[360833670,1747057834624,-500.0,0.00014873,2]
[360833672,1747057834633,-500.0,0.00014873,2]
[360833674,1747057834642,-469.8,0.00014873,2]
[360833676,1747057834652,-469.8,0.00014873,2]
[360833678,1747057834661,-151.0,0.00014873,2]
[360833680,1747057834670,-155.183749,0.00014873,2]
[360833682,1747057834680,-163.635934,0.00014873,2]
[360833684,1747057834689,-151.0,0.00014873,2]
[360833686,1747057834698,-151.0,0.00014873,2]
[360833688,1747057834707,-4116.407705,0.00014873,2]
[360833690,1747057834716,-151.0,0.00014873,2]
[360833692,1747057834727,-151.0,0.00014873,2]
[360833694,1747057834736,-151.0,0.00014873,2]
[360833696,1747057834745,-151.0,0.00014873,2]
[360833698,1747057834755,-151.0,0.00014873,2]
[360833700,1747057834764,-308.763518,0.00014873,2]
[360833702,1747057834774,-308.763518,0.00014873,2]
[360833704,1747057834783,-151.0,0.00014873,2]
[360833706,1747057834792,-151.0,0.00014873,2]
[360833708,1747057834802,-151.0,0.00014873,2]
[360833710,1747057834811,-203.260054,0.00014873,2]
[360833712,1747057834820,-203.260054,0.00014873,2]
[360833713,1747057834829,-151.0,0.00014873,2]
[360833715,1747057834838,-151.0,0.00014873,2]
[360833717,1747057834847,-151.360238,0.00014873,2]
[360833719,1747057834857,-730.468833,0.00014873,2]
[360833721,1747057834865,-154.259345,0.00014873,2]
[360833723,1747057834874,-730.468833,0.00014873,2]
[360833725,1747057834883,-151.0,0.00014873,2]
[360833727,1747057834892,-151.0,0.00014873,2]
[360833729,1747057834902,-151.0,0.00014873,2]
[360833731,1747057834911,-151.0,0.00014873,2]
[360833733,1747057834919,-151.0,0.00014873,2]
[360833735,1747057834928,-206.359752,0.00014873,2]
[360833737,1747057834937,-206.359752,0.00014873,2]
[360833739,1747057834947,-151.0,0.00014873,2]
[360833741,1747057834955,-151.0,0.00014873,2]
[360833743,1747057834965,-754.162202,0.00014873,2]
[360833745,1747057834974,-754.162202,0.00014873,2]
[360833746,1747057834983,-800.0,0.00014876,2]
[360833748,1747057834992,-36418.48065926,0.00014888,2]
[360833751,1747057835002,-151.0,0.00014888,2]
[360833753,1747057835011,-206.359752,0.00014888,2]
[360833755,1747057835020,-206.359752,0.00014888,2]
[360833757,1747057835030,-151.0,0.00014888,2]
[360833759,1747057835043,-151.0,0.00014888,2]
[360833760,1747057835052,-754.162202,0.00014888,2]
[360833762,1747057835061,-754.162202,0.00014888,2]
[360833764,1747057835071,-800.0,0.0001489,2]
[360833766,1747057835081,-238.40899327,0.00014893,2]
[360833768,1747057835090,-151.0,0.00014897,2]
[360833770,1747057835099,-1071090.87290705,0.00014897,2]
[360833925,1747057840829,-0.00172521,0.00014873,2]
[360834080,1747057846089,-171.87526779,0.00014873,2]
[360834082,1747057846099,-171.876993,0.00014873,2]
[360834084,1747057846110,-4766.24773909,0.00014897,2]
[360834089,1747057846151,-465.44151528,0.00014897,2]
[360834140,1747057953980,-250.3591559,0.00013699,2]
[360834141,1747057998505,-173.6803921,0.00013699,2]
[360834142,1747057998530,-32.53659067,0.00014599,2]
[360834143,1747058043466,-118.46340933,0.00014599,2]
[360834144,1747058043490,-38.11272934,0.00014599,2]
[360834145,1747058058518,-112.88727066,0.00014599,2]
[360834146,1747058058540,-93.32971211,0.00014798,2]
[360834147,1747058133489,-207.92972836,0.00013599,2]
[360834148,1747058178526,-12.7321789,0.00013599,2]
[360834149,1747058178549,-292.47034532,0.00014798,2]
[360834150,1747058298443,-277.44769808,0.00014599,2]
[360834151,1747058343562,-277.44769808,0.00013856,2]
[360834152,1747058388990,-233.29533542,0.00013856,2]
[360834153,1747058389013,-44.15236266,0.00014282,2]
[360834154,1747058524109,-205.6515197,0.00013822,2]
[360834155,1747058524250,-69.08960656,0.00013851,2]
[360834702,1747058629608,-270.7625258,0.00013852,2]
[360834703,1747058643541,-192.55890115,0.00013852,2]
[360834704,1747058658489,-284.9574235,0.00013851,2]
[360834706,1747058670236,-15.0425765,0.00013851,2]
[360834707,1747058670262,-190.09158542,0.00013852,2]
[360834708,1747058704043,-300.0,0.00013851,2]
[360834709,1747058704067,-82.63843984,0.00013851,2]
[360834710,1747058718464,-217.36156016,0.00013851,2]
[360834711,1747058718488,-275.73146563,0.00013851,2]
[360834712,1747058733918,-24.26853437,0.00013851,2]
[360834713,1747058733941,-364.86769622,0.00013851,2]
[360834714,1747058748489,-244.06422832,0.00013851,2]
[360834715,1747058838475,-203.40473326,0.00013669,2]
[360834717,1747058898776,-152.0,0.00013669,2]
[360834738,1747059032449,-5094.39845222,0.00013569,2]
[360834739,1747059032459,-300.0,0.00013668,2]
[360834740,1747059032469,-300.0,0.00013669,2]
[360834741,1747059032479,-298.0,0.00013669,2]
[360834742,1747059032488,-1200.0,0.00013669,2]
[360834743,1747059032498,-24900.0,0.0001367,2]
[360834744,1747059032507,-402.83757,0.00013699,2]
[360834745,1747059032517,-399.03056371,0.0001385,2]
[360834746,1747059032526,-500.0,0.0001385,2]
[360834747,1747059032535,-500.0,0.0001385,2]
[360834749,1747059032545,-206.21698277,0.0001385,2]
[360834751,1747059032554,-500.0,0.0001385,2]
[360834753,1747059032563,-500.0,0.0001385,2]
[360834755,1747059032572,-324.59512364,0.0001385,2]
[360834757,1747059032583,-500.0,0.0001385,2]
[360834759,1747059032592,-500.0,0.0001385,2]
[360834761,1747059032601,-637.2253801,0.0001385,2]
[360834762,1747059032611,-500.0,0.0001385,2]
[360834764,1747059032620,-443.17169714,0.0001385,2]
[360834766,1747059032630,-19307.93820453,0.00013852,2]
[360834768,1747059032639,-207.4,0.00014152,2]
[360834770,1747059032649,-115.84763734,0.00014282,2]
[360834772,1747059032658,-500.0,0.0001439,2]
[360834774,1747059032667,-641.8857973,0.00014569,2]
[360834777,1747059032677,-384.296127,0.00014599,2]
[360834778,1747059032686,-800.0,0.0001463,2]
[360834781,1747059032699,-1583.15652201,0.0001463,2]
[360834783,1747059032709,-800.0,0.00014643,2]
[360834785,1747059032718,-800.0,0.00014644,2]
[360834786,1747059032727,-800.0,0.00014656,2]
[360834787,1747059032737,-800.0,0.00014657,2]
[360834788,1747059032746,-800.0,0.00014661,2]
[360834790,1747059032755,-800.0,0.00014671,2]
[360834792,1747059032764,-800.0,0.00014681,2]
[360834794,1747059032774,-800.0,0.00014686,2]
[360834796,1747059032784,-800.0,0.00014687,2]
[360834798,1747059032793,-800.0,0.00014688,2]
[360834800,1747059032802,-800.0,0.00014709,2]
[360834801,1747059032812,-800.0,0.00014725,2]
[360834803,1747059032821,-238.40899327,0.00014725,2]
[360834805,1747059032830,-800.0,0.00014729,2]
[360834807,1747059032839,-500.0,0.00014739,2]
[360834809,1747059032848,-500.0,0.00014739,2]
[360834811,1747059032857,-500.0,0.00014739,2]
[360834813,1747059032866,-500.0,0.00014739,2]
[360834814,1747059032876,-643.28012197,0.00014739,2]
[360834815,1747059032885,-500.0,0.00014739,2]
[360834816,1747059032895,-500.0,0.00014739,2]
[360834817,1747059032904,-441.94665974,0.00014739,2]
[360834818,1747059032914,-500.0,0.00014739,2]
[360834819,1747059032924,-500.0,0.00014739,2]
[360834820,1747059032933,-500.0,0.00014739,2]
[360834821,1747059032943,-500.0,0.00014739,2]
[360834822,1747059032954,-500.0,0.00014739,2]
[360834823,1747059032963,-500.0,0.00014739,2]
[360834824,1747059032973,-500.0,0.00014739,2]
[360834825,1747059032982,-500.0,0.00014739,2]
[360834826,1747059032991,-250.0,0.00014739,2]
[360834827,1747059033000,-500.0,0.00014739,2]
[360834828,1747059033010,-500.0,0.00014739,2]
[360834829,1747059033018,-351.40530372,0.00014739,2]
[360834830,1747059033028,-500.0,0.00014739,2]
[360834831,1747059033038,-500.0,0.00014739,2]
[360834832,1747059033049,-800.0,0.0001474,2]
[360834833,1747059033059,-2617.5,0.0001474,2]
[360834834,1747059033069,-2617.5,0.0001474,2]
[360834835,1747059033079,-2617.5,0.0001474,2]
[360834836,1747059033089,-2617.5,0.0001474,2]
[360834837,1747059033099,-2617.5,0.0001474,2]
[360834838,1747059033108,-2617.5,0.0001474,2]
[360834839,1747059033118,-2617.5,0.0001474,2]
[360834840,1747059033127,-2617.5,0.0001474,2]
[360834841,1747059033137,-2617.5,0.0001474,2]
[360834842,1747059033147,-2617.5,0.0001474,2]
[360834843,1747059033157,-2617.5,0.0001474,2]
[360834844,1747059033168,-2617.5,0.0001474,2]
[360834845,1747059033178,-2617.5,0.0001474,2]
[360834846,1747059033187,-2617.5,0.0001474,2]
[360834847,1747059033199,-2617.5,0.0001474,2]
[360834848,1747059033208,-2617.5,0.0001474,2]
[360834849,1747059033218,-2617.5,0.0001474,2]
[360834850,1747059033228,-2617.5,0.0001474,2]
[360834851,1747059033237,-2617.5,0.0001474,2]
[360834852,1747059033247,-2617.5,0.0001474,2]
[360834853,1747059033257,-2617.5,0.0001474,2]
[360834854,1747059033266,-2617.5,0.0001474,2]
[360834855,1747059033276,-2617.5,0.0001474,2]
[360834856,1747059033286,-2617.5,0.0001474,2]
[360834857,1747059033296,-2617.5,0.0001474,2]
[360834858,1747059033306,-2617.5,0.0001474,2]
[360834859,1747059033316,-2617.5,0.0001474,2]
[360834860,1747059033326,-800.0,0.0001476,2]
[360834861,1747059033335,-800.0,0.0001476,2]